bitfinex/quotes_ETHUSD_20220120
["timestamp","ask_amount","ask_price","bid_price","bid_amount"]
[1642701067948,0.00341054,3229.8,3229.5,1.51358461]
[1642701068149,0.00284212,3229.7,3229.5,1.51358461]
[1642701068348,0.00284212,3229.7,3229.5,1.81358461]
[1642701068550,0.00227369,3229.6,3229.5,1.81358461]
[1642701069584,0.00227369,3229.6,3229.5,0.3]
[1642701069787,0.00227369,3229.6,3229.4,0.444]
[1642701069988,0.00227369,3229.6,3229.3,2.29198]
[1642701070198,0.00227369,3229.6,3229.2,1.0]
[1642701070392,0.00227369,3229.6,3229.2,0.00205136]
[1642701070691,0.00227369,3229.6,3229.3,0.00205136]
[1642701071092,0.00227369,3229.6,3229.1,0.00205136]
[1642701072191,0.00227369,3229.6,3229.1,1.498034]
[1642701072429,0.00227369,3229.6,3229.2,0.00205136]
[1642701073033,0.00227369,3229.6,3228.9,2.23671728]
[1642701073236,0.00227369,3229.6,3229.2,0.00205139]
[1642701073433,0.00227369,3229.6,3229.0,0.00318824]
[1642701073633,1.19337719,3229.3,3229.0,0.00318824]
[1642701073833,0.00227369,3229.6,3229.0,0.00318824]
[1642701074039,0.00227369,3229.6,3229.0,0.77732824]
[1642701074236,0.00227369,3229.6,3229.1,0.00205139]
[1642701076037,1.32216763,3229.3,3229.1,0.00205139]
[1642701076284,0.00227369,3229.6,3229.1,1.60849222]
[1642701076486,0.00227369,3229.6,3229.2,0.00205139]
[1642701077285,1.31585945,3229.4,3229.2,0.00205139]
[1642701078085,4.41585945,3229.4,3229.2,0.00205139]
[1642701078486,4.41585945,3229.4,3229.0,1.00318824]
[1642701078685,4.41585945,3229.4,3229.1,0.00205139]
[1642701080838,2.16133092,3229.3,3229.1,0.00205139]
[1642701081039,0.0055065,3229.2,3229.1,0.00205139]
[1642701084990,0.0055065,3229.2,3229.1,1.22008139]
[1642701085488,0.0055065,3229.2,3229.1,5.32008139]
[1642701086090,0.0055065,3229.2,3229.1,6.76242924]
[1642701086490,0.0055065,3229.2,3229.1,5.32008139]
[1642701086690,0.0055065,3229.2,3229.1,2.82008139]
[1642701086891,0.0055065,3229.2,3229.1,1.52008139]
[1642701087096,0.0055065,3229.2,3229.1,2.04605139]
[1642701087291,0.0055065,3229.2,3229.1,0.74605139]
[1642701087530,0.0055065,3229.2,3229.1,0.44605139]
[1642701089144,3.1,3229.4,3229.1,0.44605139]
[1642701089332,3.1,3229.4,3229.2,0.00205139]
[1642701090836,3.1,3229.4,3229.3,0.77407]
[1642701091285,3.10113685,3229.4,3229.3,5.77407]
[1642701091491,3.6844,3230.6,3229.4,5.35]
[1642701091687,2.63053566,3230.5,3229.9,1.3231224]
[1642701091888,0.00397896,3230.1,3229.9,1.3231224]
[1642701092187,0.00397896,3230.1,3229.9,0.3]
[1642701092188,0.00341054,3230.0,3229.9,0.3]
[1642701092393,0.00341054,3230.0,3229.9,0.444]
[1642701092594,0.00341054,3230.0,3229.9,7.00722319]
[1642701092788,0.00341054,3230.0,3229.9,7.30722319]
[1642701093189,0.00341054,3230.0,3229.9,8.30722319]
[1642701093387,0.00341054,3230.0,3229.9,9.59328599]
[1642701093790,0.00341054,3230.0,3229.9,9.71716299]
[1642701094189,0.00341054,3230.0,3229.9,3.39328599]
[1642701094389,0.00341054,3230.0,3229.9,3.09328599]
[1642701094591,0.00341054,3230.0,3229.9,1.744]
[1642701095039,0.00341054,3230.0,3229.9,0.444]
[1642701095837,0.00341054,3230.0,3229.9,0.50722319]
[1642701096936,0.00341054,3230.0,3229.9,3.25434644]
[1642701097138,0.00341054,3230.0,3229.9,4.25434644]
[1642701098137,0.00341054,3230.0,3229.9,6.78811694]
[1642701098537,1.40341054,3230.0,3229.9,6.78811694]
[1642701098786,1.40341054,3230.0,3229.9,6.48811694]
[1642701098990,1.40341054,3230.0,3229.9,6.81491092]
[1642701099391,1.40341054,3230.0,3229.9,4.55434644]
[1642701099790,1.40341054,3230.0,3229.9,4.25434644]
[1642701103132,1.40341054,3230.0,3229.9,2.97126325]
[1642701103335,1.40341054,3230.0,3229.9,0.444]
[1642701103536,1.40341054,3230.0,3229.8,0.3]
[1642701103736,1.40341054,3230.0,3229.7,0.3]
[1642701103936,0.00284211,3229.9,3229.7,0.3]
[1642701104337,0.00227369,3229.8,3229.7,0.3]
[1642701105137,0.00227369,3229.8,3229.5,1.54991139]
[1642701105338,0.00227369,3229.8,3229.5,1.54786]
[1642701105543,0.00170527,3229.7,3229.5,1.671764]
[1642701105741,0.00170527,3229.7,3229.5,1.73498719]
[1642701105938,0.00113684,3229.6,3229.5,1.73498719]
[1642701106386,0.00113684,3229.6,3229.5,1.91108319]
[1642701106584,0.00113684,3229.6,3229.5,2.91108319]
[1642701107092,0.00113684,3229.6,3229.5,1.36322319]
[1642701107285,0.00113684,3229.6,3229.5,2.91135801]
[1642701109088,0.00113684,3229.6,3229.5,6.18535801]
[1642701109290,0.00113684,3229.6,3229.5,6.60925601]
[1642701109490,0.00113684,3229.6,3229.5,7.35325601]
[1642701109688,0.00113684,3229.6,3229.5,7.05325601]
[1642701110131,0.00113684,3229.6,3229.5,6.92935801]
[1642701111135,0.00113684,3229.6,3229.5,4.42935801]
[1642701114192,0.00028412,3229.6,3229.5,2.88122319]
[1642701115195,0.00028412,3229.6,3229.5,4.26755772]
[1642701115794,1.4,3230.0,3229.7,2.32166]
[1642701116000,1.4,3230.0,3229.7,2.62166]
[1642701116195,0.00170527,3229.9,3229.7,3.62166]
[1642701116396,0.00170527,3229.9,3229.8,1.22084091]
[1642701116596,1.4,3230.0,3229.8,3.52084091]
[1642701117657,1.4,3230.0,3229.8,2.52084091]
[1642701118258,1.4,3230.0,3229.9,0.444]
[1642701118662,1.4022737,3230.0,3229.9,0.444]
[1642701119658,1.4022737,3230.0,3229.9,1.21788]
[1642701120065,1.4022737,3230.0,3229.9,10.71788]
[1642701120259,1.4022737,3230.0,3229.9,12.01788]
[1642701121587,1.4022737,3230.0,3229.9,13.01788]
[1642701121788,0.48552701,3230.0,3229.9,13.01788]
[1642701121993,3.6783,3230.7,3230.1,0.77375]
[1642701122191,2.3066829,3231.1,3230.3,0.77375]
[1642701122388,0.00341054,3230.6,3230.3,1.21775]
[1642701122592,0.00341054,3230.6,3230.3,2.51775]
[1642701122794,0.00284211,3230.5,3230.4,2.60053424]
[1642701123197,0.00454738,3230.5,3230.4,2.60053424]
[1642701123395,0.00454738,3230.5,3230.4,1.27186901]
[1642701123593,2.63477568,3230.5,3230.4,1.27186901]
[1642701123796,2.63477568,3230.5,3230.3,0.3]
[1642701124099,2.63250199,3230.4,3230.0,1.3]
[1642701124292,0.00227369,3230.4,3230.0,1.3]
[1642701124493,2.63027773,3230.9,3230.3,1.38596202]
[1642701124939,2.63539354,3230.9,3230.6,1.54843269]
[1642701125139,2.63539354,3230.9,3230.6,1.84843269]
[1642701125140,2.63027773,3230.8,3230.6,1.84843269]
[1642701125543,0.00397896,3230.7,3230.6,1.84843269]
[1642701125744,2.63425669,3230.7,3230.3,0.77382]
[1642701125945,4.76895226,3230.6,3230.0,0.77388]
[1642701126145,2.63027773,3230.5,3229.9,5.0]
[1642701126347,2.1442599,3230.4,3229.9,5.0]
[1642701126543,2.63027773,3230.3,3229.9,5.0]
[1642701126745,0.00170527,3230.3,3230.0,1.30554482]
[1642701127045,0.00113684,3230.2,3230.0,0.3]
[1642701127244,0.00113684,3230.2,3229.6,2.7595]
[1642701127245,0.00113684,3230.2,3229.8,1.3]
[1642701127444,2.18177584,3230.2,3229.3,5.0]
[1642701127645,2.23054355,3230.4,3229.5,0.77401]
[1642701127845,2.12823589,3230.4,3229.5,0.77685212]
[1642701128044,2.63220304,3230.3,3229.5,0.77685212]
[1642701128245,2.63220304,3230.3,3229.6,1.4774805]
[1642701128445,0.00113684,3230.2,3229.8,1.28383118]
[1642701128888,2.11758734,3230.2,3229.7,1.30170527]
[1642701129084,2.63055381,3230.1,3229.7,1.30170527]
[1642701129284,2.11758734,3230.2,3229.8,0.00113685]
[1642701129488,2.63055417,3230.1,3229.8,0.00113685]
[1642701129887,1.10267718,3229.9,3229.6,0.0022737]
[1642701130095,2.29629152,3229.8,3229.6,0.0022737]
[1642701130291,2.63076603,3229.8,3229.6,0.0022737]
[1642701130691,2.63076603,3229.8,3229.0,0.00568424]
[1642701131290,2.63076603,3229.8,3229.0,1.12261778]
[1642701131494,5.34399833,3230.2,3229.0,1.12261778]
[1642701131689,2.63077088,3230.1,3229.1,0.00511582]
[1642701132292,2.36728009,3230.0,3229.4,1.28449066]
[1642701132543,4.00467623,3229.9,3229.5,0.3]
[1642701132743,4.92957771,3229.8,3229.5,0.3]
[1642701132944,2.29880683,3229.8,3229.6,0.0022737]
[1642701133143,1.37390535,3229.9,3229.6,0.0022737]
[1642701133343,2.630747,3229.8,3229.6,0.0022737]
[1642701133543,2.630747,3229.8,3229.4,2.66734837]
[1642701133941,2.630747,3229.8,3229.4,2.96734837]
[1642701135146,2.630747,3229.8,3229.4,0.3]
[1642701135343,4.73844287,3229.8,3228.6,2.41896169]
[1642701135545,4.73844287,3229.8,3228.9,0.3]
[1642701135546,2.10769587,3229.8,3228.9,0.3]
[1642701135845,2.63487865,3229.7,3228.8,0.00401893]
[1642701136046,0.00397897,3229.7,3228.8,0.77817893]
[1642701136289,0.00341054,3229.6,3229.2,1.515591]
[1642701136495,0.00341054,3229.6,3229.2,1.815591]
[1642701136698,0.00284212,3229.5,3229.2,0.3]
[1642701137093,0.00284212,3229.5,3228.7,0.12562827]
[1642701137094,0.0022737,3229.4,3228.7,0.00170527]
[1642701137493,0.00170527,3229.3,3228.5,0.60284212]
[1642701137696,0.00170527,3229.3,3228.6,0.00629289]
[1642701137993,1.39810483,3229.1,3228.7,1.32799798]
[1642701138192,0.00113685,3229.2,3228.7,1.32799798]
[1642701138394,2.63391915,3229.5,3228.8,0.30113685]
[1642701138595,2.14055982,3229.4,3228.8,0.30113685]
[1642701138792,0.0022737,3229.4,3228.8,0.30113685]
[1642701138991,0.00170527,3229.3,3228.8,0.30113685]
[1642701139397,0.00113685,3229.2,3228.8,0.30113685]
[1642701139793,1.19806796,3229.2,3228.8,0.30113685]
[1642701141047,2.10670908,3229.1,3228.8,0.00113685]
[1642701141247,1.19806796,3229.2,3228.8,0.00113685]
[1642701141650,1.19806796,3229.2,3228.4,0.00341054]
[1642701141651,2.11649208,3229.1,3228.4,0.00341054]
[1642701141954,1.19806796,3229.2,3228.4,0.00742985]
[1642701142150,1.19806796,3229.2,3228.4,0.00341054]
[1642701142353,1.19806796,3229.2,3228.6,1.2763903]
[1642701143551,1.19806796,3229.2,3228.6,1.5763903]
[1642701143789,0.0022737,3229.4,3229.0,1.18019514]
[1642701144093,0.00170527,3229.3,3229.0,1.48019514]
[1642701144498,0.00113685,3229.2,3229.0,1.78019514]
[1642701144692,0.00113685,3229.2,3229.1,5.244]
[1642701144891,0.00397897,3229.7,3229.2,1.39329079]
[1642701145091,1.2423,3230.1,3229.3,0.444]
[1642701145289,2.63074735,3230.0,3229.3,0.444]
[1642701145589,0.00397897,3229.7,3229.3,0.444]
[1642701145993,0.00341054,3229.6,3229.3,1.444]
[1642701146192,0.00341054,3229.6,3229.3,0.444]
[1642701146390,0.00284212,3229.5,3229.3,1.444]
[1642701146592,0.00284212,3229.5,3229.3,0.444]
[1642701146793,0.0022737,3229.4,3229.3,1.9460805]
[1642701147435,0.0022737,3229.4,3229.3,0.444]
[1642701148642,0.0022737,3229.4,3229.3,3.21756756]
[1642701149043,0.0022737,3229.4,3229.3,3.51756756]
[1642701150243,0.0022737,3229.4,3229.3,3.51889665]
[1642701157350,0.00130118,3229.4,3229.3,7.33211984]
[1642701158155,0.00130118,3229.4,3229.3,4.88211984]
[1642701158351,0.00130118,3229.4,3229.3,3.58211984]
[1642701158552,0.00130118,3229.4,3229.3,5.88211984]
[1642701159600,0.00130118,3229.4,3229.3,4.88211984]
[1642701160201,0.00130118,3229.4,3229.3,5.00602184]
[1642701160598,0.00130118,3229.4,3229.3,4.88211984]
[1642701161199,1.09096618,3229.4,3229.3,4.88211984]
[1642701162001,1.09096618,3229.4,3229.3,4.58211984]
[1642701162438,1.09096618,3229.4,3229.3,4.88211984]
[1642701162645,1.09096618,3229.4,3229.3,4.58211984]
[1642701162840,1.09096618,3229.4,3229.3,4.88211984]
[1642701164945,1.09096618,3229.4,3229.3,4.58211984]
[1642701165151,1.09096618,3229.4,3229.3,3.28211984]
[1642701165349,1.09096618,3229.4,3229.3,1.2938527]
[1642701165948,1.09096618,3229.4,3229.3,0.00132909]
[1642701166390,1.09096618,3229.4,3229.3,1.4552607]
[1642701167188,1.09096618,3229.4,3229.3,2.93149972]
[1642701171649,1.09096618,3229.4,3229.3,2.63149972]
[1642701171849,1.09096618,3229.4,3229.3,2.93149972]
[1642701174294,3.72186029,3229.4,3229.3,2.93149972]
[1642701174496,1.09096618,3229.4,3229.3,2.93149972]
[1642701174896,3.72186029,3229.4,3229.3,2.93149972]
[1642701178756,3.72186029,3229.4,3229.3,3.70550972]
[1642701178956,3.72186029,3229.4,3229.3,2.93149972]
[1642701181488,1.09096618,3229.4,3229.3,2.93149972]
[1642701181888,1.08996147,3229.4,3229.3,2.93149972]
[1642701183494,3.72083876,3229.4,3229.3,2.93149972]
[1642701184695,3.72083876,3229.4,3229.3,1.7552607]
[1642701186950,3.72083876,3229.4,3229.3,1.7052607]
[1642701187551,3.72054229,3229.4,3229.3,1.7052607]
[1642701188155,3.72054229,3229.4,3229.3,0.00132909]
[1642701193041,3.72054229,3229.4,3229.2,6.75398762]
[1642701193241,1.089665,3229.4,3229.2,1.80398773]
[1642701193445,1.089665,3229.4,3229.2,1.86674088]
[1642701193942,1.089665,3229.4,3229.2,2.16674088]
[1642701195646,2.63095504,3229.3,3229.2,2.16674088]
[1642701195948,2.63095504,3229.3,3229.2,2.16758126]
[1642701196193,3.72062004,3229.3,3229.2,2.16758126]
[1642701197197,1.089665,3229.3,3229.2,2.16758126]
[1642701198600,3.72073522,3229.3,3229.2,2.16758126]
[1642701199396,1.089665,3229.3,3229.2,2.16758126]
[1642701199796,3.7207642,3229.3,3229.2,2.16758126]
[1642701200846,1.089665,3229.3,3229.2,2.16758126]
[1642701201251,1.089665,3229.3,3229.2,0.80892273]
[1642701201648,3.7207789,3229.3,3229.2,0.80892273]
[1642701203796,3.7207789,3229.3,3229.2,0.36492273]
[1642701203993,3.7207789,3229.3,3229.2,0.00216958]
[1642701204292,5.92586015,3229.3,3229.2,0.00216958]
[1642701204699,3.7207789,3229.3,3229.2,0.00216958]
[1642701205094,5.26592148,3229.3,3229.2,0.00216958]
[1642701205299,5.26630665,3229.3,3229.2,0.00216958]
[1642701206500,5.21630665,3229.3,3229.2,0.00216958]
[1642701206701,7.68377933,3229.3,3229.2,0.00216958]
[1642701206901,7.68377933,3229.3,3229.2,0.00128159]
[1642701208851,7.49472948,3229.3,3229.2,0.00128159]
[1642701209848,5.16630665,3229.3,3229.2,0.00128159]
[1642701211051,7.4077601,3229.3,3229.2,0.00128159]
[1642701211293,5.16630665,3229.3,3229.2,0.00128159]
[1642701212091,7.38829078,3229.3,3229.2,0.00128159]
[1642701213098,7.33829078,3229.3,3229.2,0.00128159]
[1642701213501,2.9,3229.2,3227.9,2.14491359]
[1642701213700,2.9,3229.2,3228.6,0.123948]
[1642701213701,5.09130179,3229.1,3228.6,0.123948]
[1642701213900,2.63149907,3229.0,3228.6,0.123948]
[1642701214205,2.22649172,3228.9,3228.6,0.123948]
[1642701214505,2.63149907,3228.8,3228.0,0.00682108]
[1642701214700,3.57116407,3228.8,3228.2,0.00386913]
[1642701214943,1.51300912,3228.5,3228.0,0.60682108]
[1642701215147,2.22092714,3228.4,3228.3,0.00511581]
[1642701215347,1.51300912,3228.5,3228.1,0.00625266]
[1642701215544,2.40267412,3228.5,3228.2,0.00568424]
[1642701215746,2.40267412,3228.5,3228.1,0.00625266]
[1642701216348,2.40267412,3228.5,3227.9,0.00738951]
[1642701217349,1.39713889,3228.4,3227.9,0.00738951]
[1642701217950,4.52266226,3228.4,3227.9,0.00738951]
[1642701218552,2.33680389,3228.4,3227.9,0.00738951]
[1642701218794,0.939665,3228.4,3227.7,2.78837142]
[1642701218997,0.0022737,3228.3,3227.7,2.78837142]
[1642701219396,0.00170527,3228.2,3227.7,2.78837142]
[1642701219794,0.00113685,3228.1,3227.7,2.78837142]
[1642701219995,0.00113685,3228.1,3227.7,3.95505601]
[1642701220199,0.94080185,3228.1,3227.7,4.25505601]
[1642701221801,0.94080185,3228.1,3227.9,1.54856]
[1642701222007,0.94080185,3228.1,3228.0,6.644]
[1642701222302,0.94080185,3228.1,3228.0,8.41825]
[1642701222551,0.94080185,3228.1,3228.0,10.65650736]
[1642701222850,3.47939306,3229.2,3228.3,2.32262]
[1642701223049,1.1346,3229.2,3228.4,1.5182]
[1642701223247,1.1346,3229.2,3228.4,1.82206773]
[1642701223248,0.00568423,3229.1,3228.4,1.82206773]
[1642701223450,0.00568423,3229.1,3228.6,0.77421]
[1642701223648,1.1346,3229.2,3228.6,0.77421]
[1642701223649,0.00511581,3229.0,3228.9,1.20127921]
[1642701223849,0.00511581,3229.0,3228.9,1.50127921]
[1642701225251,0.00511581,3229.0,3228.8,1.3]
[1642701225464,0.00511581,3229.0,3228.8,0.744]
[1642701225652,0.00454739,3228.9,3228.8,0.744]
[1642701226301,0.00454739,3228.9,3228.8,1.8580367]
[1642701228402,0.00454739,3228.9,3228.8,2.8580367]
[1642701230642,0.00454739,3228.9,3228.8,2.8080367]
[1642701232048,0.00454739,3228.9,3228.8,3.1080367]
[1642701232851,0.00454739,3228.9,3228.8,6.0080367]
[1642701233252,0.00454739,3228.9,3228.8,3.1080367]
[1642701235494,0.00454739,3228.9,3228.8,2.8080367]
[1642701237546,0.00454739,3228.9,3228.8,3.1080367]
[1642701237953,0.00454739,3228.9,3228.8,2.8080367]
[1642701238747,0.00454739,3228.9,3228.8,1.8080367]
[1642701239351,3.79401441,3229.7,3228.8,1.8080367]
[1642701239552,2.631587,3229.6,3228.8,1.8080367]
[1642701239751,0.00170527,3229.2,3228.8,1.8080367]
[1642701240152,0.00113684,3229.1,3228.8,1.8080367]
[1642701240352,0.00113684,3229.1,3228.8,2.8080367]
[1642701240557,0.00227369,3229.3,3228.8,2.8080367]
[1642701240752,0.00227369,3229.3,3228.8,3.1080367]
[1642701241207,0.00227369,3229.3,3228.8,2.10610305]
[1642701241997,2.19028009,3229.3,3228.8,2.10610305]
[1642701242198,2.631587,3229.2,3229.0,1.43385324]
[1642701242398,2.631587,3229.2,3229.0,1.73385324]
[1642701242602,4.83103181,3229.1,3229.0,0.3]
[1642701242802,4.87635452,3229.1,3228.8,2.15610305]
[1642701243002,2.631587,3229.0,3228.8,2.15610305]
[1642701243208,2.631587,3228.9,3228.8,2.15610305]
[1642701243702,0.00113684,3229.1,3228.8,2.15610305]
[1642701243903,1.44380583,3229.1,3228.8,3.50689369]
[1642701244201,2.631587,3229.0,3228.8,2.39479064]
[1642701244401,2.631587,3228.9,3228.8,2.39479064]
[1642701244603,0.00113684,3229.1,3228.8,2.39479064]
[1642701244947,0.00113684,3229.1,3228.8,0.3]
[1642701245148,0.00113684,3229.1,3228.7,0.00193365]
[1642701245345,2.44247363,3229.1,3228.7,0.00193365]
[1642701245546,2.631587,3229.0,3228.5,1.24589791]
[1642701245751,2.631587,3229.0,3228.6,0.00193365]
[1642701245947,2.631587,3228.9,3228.6,1.47350123]
[1642701246147,2.631587,3228.9,3228.7,0.00193365]
[1642701247650,2.631587,3228.8,3228.7,0.00193365]
[1642701248254,1.46466715,3229.1,3228.7,1.33764702]
[1642701248450,0.00113684,3229.1,3228.7,1.33764702]
[1642701248703,0.00113684,3229.1,3228.8,0.3]
[1642701253155,0.00113684,3229.1,3229.0,1.21902404]
[1642701253560,0.00113684,3229.1,3229.0,1.51902404]
[1642701255560,0.00113684,3229.1,3228.8,0.3]
[1642701256999,2.24606967,3229.1,3228.8,0.3]
[1642701257198,2.631587,3229.0,3228.7,0.00193365]
[1642701257398,2.42356965,3228.9,3228.6,0.00170527]
[1642701257600,2.631587,3228.8,3228.6,0.00170527]
[1642701257899,2.631587,3228.8,3228.5,0.123954]
[1642701258097,0.00113684,3229.1,3228.6,0.00193365]
[1642701258098,2.631587,3228.7,3228.6,0.00193365]
[1642701258299,5.38004427,3230.1,3228.9,6.2]
[1642701258503,4.20732794,3230.5,3229.4,0.01207423]
[1642701258504,1.50491441,3230.3,3229.4,0.01207423]
[1642701258810,3.76332794,3231.2,3230.2,0.01275677]
[1642701258811,1.50491441,3231.0,3230.2,0.01275677]
[1642701258999,2.50491441,3231.2,3230.3,0.4620953]
[1642701259199,0.00738951,3230.4,3230.3,0.444]
[1642701259601,0.00738951,3230.4,3230.3,5.989]
[1642701260455,1.18070973,3230.4,3230.3,5.989]
[1642701260860,1.18070973,3230.4,3229.3,5.545]
[1642701261058,1.18070973,3230.4,3229.4,0.444]
[1642701261257,0.00682109,3230.3,3229.4,0.444]
[1642701261654,1.17332022,3230.4,3229.4,0.444]
[1642701261655,0.82507987,3230.4,3229.4,0.444]
[1642701261854,0.82507987,3230.4,3229.5,0.00454739]
[1642701262054,2.2363084,3229.7,3229.6,0.444]
[1642701262456,1.11142464,3229.7,3229.6,0.44797897]
[1642701263055,1.50491441,3230.5,3229.6,0.44797897]
[1642701263457,1.50491441,3230.5,3229.7,0.00341054]
[1642701263722,1.50491441,3230.4,3229.8,0.444]
[1642701264117,1.34172414,3230.0,3229.9,0.0022737]
[1642701264312,1.34172414,3230.0,3229.9,0.4462737]
[1642701266625,1.225,3230.3,3229.9,0.4462737]
[1642701266821,0.00113684,3230.5,3229.9,0.4462737]
[1642701267021,0.00113684,3230.5,3230.0,0.00170527]
[1642701267647,1.4178028,3230.3,3230.0,0.00170527]
[1642701267850,1.15007374,3230.2,3230.0,0.00170527]
[1642701268852,1.15007374,3230.2,3229.8,0.00284212]
[1642701271506,0.00215313,3230.1,3229.8,0.00284212]
[1642701271709,0.00113684,3230.5,3229.8,0.00284212]
[1642701271710,0.00215313,3230.2,3229.8,0.00284212]
[1642701271913,0.00113684,3230.5,3229.8,0.00284212]
[1642701271914,0.00328997,3230.5,3229.8,0.00284212]
[1642701272110,0.00328997,3230.5,3229.9,0.444]
[1642701272610,1.22196958,3230.4,3230.0,0.00170527]
[1642701272811,0.00215313,3230.3,3230.0,0.00170527]
[1642701273008,0.00215313,3230.3,3230.1,0.444]
[1642701275256,0.00215313,3230.3,3230.1,1.92830718]
[1642701275457,0.00215313,3230.3,3230.1,2.22830718]
[1642701275658,2.63299796,3230.3,3230.1,2.22830718]
[1642701276660,2.63299796,3230.3,3230.1,0.744]
[1642701278696,2.63299796,3230.3,3230.1,0.74495621]
[1642701285256,2.63299796,3230.3,3230.1,0.74401297]
[1642701288811,2.63299796,3230.3,3230.1,0.44495621]
[1642701289617,2.63299796,3230.3,3229.8,0.00284212]
[1642701289618,0.83352849,3230.0,3229.8,0.00284212]
[1642701289816,9.64535926,3229.9,3229.8,0.00379831]
[1642701290056,13.43440409,3229.9,3229.8,0.00379831]
[1642701290249,11.03772977,3229.9,3229.8,0.00379831]
[1642701290450,9.53904483,3229.9,3229.8,0.00379831]
[1642701290647,9.69331483,3229.9,3229.8,0.00379831]
[1642701291652,12.08960532,3229.9,3229.8,0.00379831]
[1642701292254,13.08960532,3229.9,3229.8,9.831e-05]
[1642701292459,16.91700951,3229.9,3229.8,0.30929831]
[1642701292661,0.17772906,3229.7,3228.2,0.00193313]
[1642701292859,1.49534559,3229.4,3228.5,0.00095619]
[1642701293056,4.12619042,3229.3,3228.5,0.00288932]
[1642701293257,5.98251915,3229.3,3228.5,0.00288932]
[1642701293455,3.78511483,3229.2,3228.5,0.00095619]
[1642701293696,1.45149389,3228.7,3228.5,0.00095619]
[1642701293898,2.63084483,3228.6,3228.5,0.00095619]
[1642701294095,3.61954483,3228.6,3228.5,0.00095619]
[1642701294300,3.61954483,3228.6,3228.5,0.0083457]
[1642701294799,5.87079999,3228.6,3228.5,0.0083457]
[1642701295700,5.87196146,3228.6,3228.5,0.0083457]
[1642701296900,6.02623146,3228.6,3228.5,0.0083457]
[1642701298654,7.02623146,3228.6,3228.5,0.0083457]
[1642701298856,6.02623146,3228.6,3228.5,0.0083457]
[1642701299255,3.7749763,3228.6,3228.5,0.0083457]
[1642701299657,5.99088846,3228.6,3228.5,0.0083457]
[1642701300055,3.20461216,3228.6,3228.5,0.0083457]
[1642701300260,2.21762664,3228.6,3228.5,0.0083457]
[1642701300455,1.45149389,3228.7,3228.5,0.0083457]
[1642701300658,2.22289614,3228.6,3228.5,0.0083457]
[1642701300856,2.22289614,3228.6,3228.5,0.00095619]
[1642701301299,2.26763199,3228.6,3228.5,0.00095619]
[1642701301499,2.23289762,3228.6,3228.5,0.00095619]
[1642701301701,2.21205104,3228.6,3228.5,0.00095619]
[1642701302002,2.33972852,3228.6,3228.5,0.00095619]
[1642701302401,1.45149389,3228.7,3228.5,0.00095619]
[1642701302700,2.25195796,3228.6,3228.5,0.00095619]
[1642701302906,6.30195796,3228.6,3228.5,0.00095619]
[1642701303104,6.30195796,3228.6,3228.5,0.0083457]
[1642701303304,2.25195796,3228.6,3228.5,0.0083457]
[1642701303705,2.40622796,3228.6,3228.5,0.0083457]
[1642701303909,5.03842615,3228.6,3228.5,0.0083457]
[1642701304108,21.43622796,3228.6,3228.5,0.0083457]
[1642701307260,19.18427,3228.6,3228.5,0.0083457]
[1642701307459,3.7865935,3228.6,3228.5,0.0083457]
[1642701308696,21.8165935,3228.6,3228.5,0.0083457]
[1642701309297,19.18427,3228.6,3228.5,0.0083457]
[1642701309497,1.15427,3228.6,3228.5,0.0083457]
[1642701309698,3.47539335,3228.6,3228.5,0.0083457]
[1642701309898,1.15427,3228.6,3228.5,0.0083457]
[1642701310097,3.37878353,3228.6,3228.5,0.0083457]
[1642701310802,5.92878353,3228.6,3228.5,0.0083457]
[1642701311001,26.8910486,3228.6,3228.5,0.0083457]
[1642701311202,28.4255286,3228.6,3228.5,0.0083457]
[1642701311401,25.8755286,3228.6,3228.5,0.0083457]
[1642701311905,5.32101507,3228.6,3228.5,0.0083457]
[1642701312108,5.00040735,3228.6,3228.5,0.0083457]
[1642701312960,5.30040735,3228.6,3228.5,0.0083457]
[1642701313167,5.30040735,3228.6,3227.6,2.54588573]
[1642701313168,7.93286365,3228.6,3227.6,2.54588573]
[1642701313360,5.30040735,3228.6,3227.8,0.00095619]
[1642701313562,5.30040735,3228.6,3227.7,0.00454738]
[1642701313761,5.00040735,3228.6,3227.7,1.57962942]
[1642701313962,5.00040735,3228.6,3227.8,0.00380145]
[1642701314162,5.00040735,3228.6,3227.8,0.00778041]
[1642701314361,1.34847176,3228.0,3227.9,0.00341054]
[1642701314763,1.12930205,3227.9,3227.8,0.00397896]
[1642701314963,1.12930205,3227.9,3227.6,2.84588573]
[1642701315364,1.12930205,3227.9,3227.7,0.77912738]
[1642701315769,1.12930205,3227.9,3227.8,0.00397896]
[1642701316401,3.37129734,3227.9,3227.8,0.00397896]
[1642701316604,1.12930205,3227.9,3227.8,0.00397896]
[1642701317006,5.20585719,3227.9,3227.8,0.00397896]
[1642701317206,2.81805205,3227.9,3227.8,0.00397896]
[1642701317403,3.81805205,3227.9,3227.8,0.00397896]
[1642701317805,6.46805205,3227.9,3227.8,0.00397896]
[1642701318005,3.81805205,3227.9,3227.8,0.00397896]
[1642701319005,6.18108411,3227.9,3227.8,0.00397896]
[1642701321858,6.18108411,3227.9,3227.6,1.57851507]
[1642701321859,3.81805205,3227.9,3227.6,1.57851507]
[1642701322059,1.0,3227.8,3227.6,1.57851507]
[1642701322359,0.15427,3227.7,3227.6,1.57851507]
[1642701322756,0.15427,3227.7,3227.6,1.57965192]
[1642701323562,2.66378205,3227.9,3227.6,1.57965192]
[1642701325309,2.66378205,3227.9,3227.7,0.00189994]
[1642701325510,0.14602211,3227.8,3227.7,0.00189994]
[1642701326309,2.66378205,3227.9,3227.7,0.00189994]
[1642701331080,0.14602211,3227.8,3227.7,0.00189994]
[1642701332111,3.77898318,3227.8,3227.7,0.00189994]
[1642701332311,2.77898318,3227.8,3227.7,0.00189994]
[1642701332511,3.77898318,3227.8,3227.7,0.00189994]
[1642701333913,2.63296107,3227.8,3227.7,0.00189994]
[1642701336567,2.77898318,3227.8,3227.7,0.00189994]
[1642701336762,2.63296107,3227.8,3227.7,0.00189994]
[1642701337566,2.63296107,3227.8,3227.6,1.36541707]
[1642701337968,2.63296107,3227.8,3227.6,1.66541707]
[1642701339010,0.14602211,3227.7,3227.6,1.36541707]
[1642701339216,2.77898318,3227.7,3227.6,1.36541707]
[1642701340113,2.63296107,3227.7,3227.6,1.36541707]
[1642701340314,2.63296107,3227.7,3227.6,1.66541707]
[1642701340514,2.66378205,3227.9,3227.6,1.66541707]
[1642701340515,2.63296107,3227.8,3227.6,1.66541707]
[1642701340717,2.63296107,3227.8,3227.6,1.36541707]
[1642701341119,2.63296107,3227.8,3227.6,1.66541707]
[1642701341518,2.63296107,3227.8,3227.6,1.36541707]
[1642701342760,2.63296107,3227.8,3227.6,1.66541707]
[1642701344466,6.34602211,3227.7,3227.5,1.57914714]
[1642701344667,6.34602211,3227.7,3227.3,1.5994]
[1642701344668,11.20874559,3227.6,3227.3,1.5994]